[Event "Romanian Championship Open 2025"]
[Site "Craiova"]
[Date "2025.02.17"]
[Round "3.10"]
[White "Tanasie, Cosmin"]
[Black "Ilinca, Felix-Antonio"]
[Result "0-1"]
[Annotator "ChessBase"]
[ECO "D00"]
[WhiteElo "2198"]
[BlackElo "2412"]
[PlyCount "60"]
[EventDate "2025.02.12"]
[EventType "swiss"]
[EventCountry "ROU"]
[SourceTitle "playchess.com"]
[Source "ChessBase"]
[SourceQuality "1"]
[TimeControl "40/5400+30:900+30"]

1. d4 {[%emt 0:00:04]} d5 {[%emt 0:00:42]} 2. Bf4 {[%emt 0:00:09]} Nf6 {[%emt 0:00:35]} 3. e3 {[%emt 0:00:07]} e6 {[%emt 0:01:09]} 4. Nd2 {[%emt 0:00:14]} c5 {[%emt 0:00:26]} 5. c3 {[%emt 0:00:12]} Nc6 {[%emt 0:00:34]} 6. Bg3 {[%emt 0:00:23]} Be7 {[%emt 0:01:14]} 7. Bd3 {[%emt 0:00:18]} O-O {[%emt 0:00:37]} 8. Ngf3 {[%emt 0:00:31]} Nh5 {[%emt 0:03:21]} 9. dxc5 {[%emt 0:34:31]} Bxc5 {[%emt 0:06:41]} 10. Bh4 {[%emt 0:06:08]} Be7 {[%emt 0:05:34]} 11. Bxe7 {[%emt 0:01:01]} Qxe7 {[%emt 0:02:01]} 12. c4 {[%emt 0:09:11]} dxc4 {[%emt 0:10:40]} 13. Bxc4 {[%emt 0:00:14]} b6 {[%emt 0:05:03]} 14. O-O {[%emt 0:01:11]} Bb7 {[%emt 0:00:47]} 15. Qe2 {[%emt 0:04:16]} Rfd8 {[%emt 0:02:27]} 16. a3 {[%emt 0:05:32]} Qf6 {[%emt 0:09:52]} 17. Ba6 {[%emt 0:05:45]} Bxa6 {[%emt 0:04:41]} 18. Qxa6 {[%emt 0:00:03]} Qxb2 {[%emt 0:10:05]} 19. Rab1 {[%emt 0:03:26]} Qf6 {[%emt 0:06:19]} 20. Qb5 {[%emt 0:00:02]} Ne5 {[%emt 0:01:10]} 21. Nxe5 {[%emt 0:01:54]} Rxd2 {[%emt 0:00:08]} 22. Rbd1 {[%emt 0:00:56]} Rxd1 {[%emt 0:05:14]} 23. Rxd1 {[%emt 0:00:29]} Rd8 {[%emt 0:00:56]} 24. Rd4 {[%emt 0:00:35]} g6 {[%emt 0:05:48]} 25. Qa4 {[%emt 0:09:46]} Rc8 {[%emt 0:03:43]} 26. Nc6 {[%emt 0:04:22]} Nf4 {[%emt 0:02:50]} 27. Rd1 {[%emt 0:09:04]} Ne2+ {[%emt 0:01:11]} 28. Kf1 {[%emt 0:01:02]} Nc3 {[%emt 0:00:05]} 29. Qc2 {[%emt 0:02:42]} Nxd1 {[%emt 0:00:32]} 30. Ne7+ {[%emt 0:00:02]} Kg7 {[%emt 0:00:10]} 0-1

[Event "Romanian Championship Open 2025"]
[Site "Craiova"]
[Date "2025.02.17"]
[Round "3.11"]
[White "Danila, Tudor-Gabriel"]
[Black "Filip, Andrei"]
[Result "1-0"]
[Annotator "ChessBase"]
[ECO "B42"]
[WhiteElo "2136"]
[BlackElo "2320"]
[PlyCount "71"]
[EventDate "2025.02.12"]
[EventType "swiss"]
[EventCountry "ROU"]
[SourceTitle "playchess.com"]
[Source "ChessBase"]
[SourceQuality "1"]
[TimeControl "40/5400+30:900+30"]

1. e4 {[%emt 0:00:02]} c5 {[%emt 0:00:08]} 2. Nf3 {[%emt 0:00:04]} e6 {[%emt 0:00:05]} 3. d4 {[%emt 0:00:03]} cxd4 {[%emt 0:00:07]} 4. Nxd4 {[%emt 0:00:04]} a6 {[%emt 0:00:06]} 5. Bd3 {[%emt 0:00:03]} Bc5 {[%emt 0:01:15]} 6. Nb3 {[%emt 0:00:04]} Ba7 {[%emt 0:00:06]} 7. Qe2 {[%emt 0:00:04]} Ne7 {[%emt 0:00:20]} 8. Be3 {[%emt 0:01:12]} O-O {[%emt 0:01:13]} 9. Nc3 {[%emt 0:00:16]} b5 {[%emt 0:02:00]} 10. O-O-O {[%emt 0:02:26]} Nbc6 {[%emt 0:05:52]} 11. Bxa7 {[%emt 0:00:14]} Rxa7 {[%emt 0:00:23]} 12. Qe3 {[%emt 0:00:12]} Rc7 {[%emt 0:05:36]} 13. f4 {[%emt 0:01:15]} d5 {[%emt 0:04:52]} 14. Qf3 {[%emt 0:18:32]} Nb4 {[%emt 0:05:45]} 15. exd5 {[%emt 0:03:24]} exd5 {[%emt 0:04:30]} 16. a3 {[%emt 0:04:53]} Nxd3+ {[%emt 0:05:08]} 17. Rxd3 {[%emt 0:00:06]} Bf5 {[%emt 0:03:08]} 18. Rd2 {[%emt 0:01:40]} Qc8 {[%emt 0:00:36]} 19. Nd4 {[%emt 0:03:35]} Bg4 {[%emt 0:07:04]} 20. Qe3 {[%emt 0:16:58]} Rd8 {[%emt 0:09:44]} 21. h3 {[%emt 0:03:20]} Bf5 {[%emt 0:04:28]} 22. Re1 {[%emt 0:04:25]} h5 {[%emt 0:02:34]} 23. g4 {[%emt 0:04:42]} hxg4 {[%emt 0:00:19]} 24. hxg4 {[%emt 0:00:10]} Bxg4 {[%emt 0:00:29]} 25. f5 {[%emt 0:01:44]} Nxf5 {[%emt 0:06:49]} 26. Qg5 {[%emt 0:00:15]} Nxd4 {[%emt 0:08:54]} 27. Rxd4 {[%emt 0:00:05]} Bf5 {[%emt 0:02:23]} 28. Rf1 {[%emt 0:03:09]} Bg6 {[%emt 0:02:25]} 29. Rh4 {[%emt 0:00:52]} Rc4 {[%emt 0:06:27]} 30. Rh2 {[%emt 0:01:30]} f6 {[%emt 0:07:31]} 31. Qxg6 {[%emt 0:03:58]} Rg4 {[%emt 0:00:20]} 32. Qh7+ {[%emt 0:01:11]} Kf8 {[%emt 0:01:41]} 33. Nxd5 {[%emt 0:00:43]} Qc4 {[%emt 0:01:21]} 34. Rxf6+ {[%emt 0:00:30]} gxf6 {[%emt 0:00:31]} 35. Qe7+ {[%emt 0:00:05]} Kg8 {[%emt 0:00:06]} 36. Nxf6# {[%emt 0:00:02]} 1-0

[Event "Romanian Championship Open 2025"]
[Site "Craiova"]
[Date "2025.02.17"]
[Round "3.12"]
[White "Ignat, Matei-Marius"]
[Black "Sachilaru, Alexandru"]
[Result "1/2-1/2"]
[Annotator "ChessBase"]
[ECO "B12"]
[WhiteElo "2137"]
[BlackElo "2305"]
[PlyCount "51"]
[EventDate "2025.02.12"]
[EventType "swiss"]
[EventCountry "ROU"]
[SourceTitle "playchess.com"]
[Source "ChessBase"]
[SourceQuality "1"]
[TimeControl "40/5400+30:900+30"]

1. e4 {[%emt 0:00:04]} c6 {[%emt 0:00:12]} 2. d4 {[%emt 0:00:20]} d5 {[%emt 0:00:10]} 3. e5 {[%emt 0:00:02]} Bf5 {[%emt 0:00:18]} 4. h4 {[%emt 0:01:10]} a6 {[%emt 0:00:24]} 5. g4 {[%emt 0:05:13]} Bd7 {[%emt 0:01:35]} 6. c3 {[%emt 0:00:57]} c5 {[%emt 0:02:35]} 7. Be2 {[%emt 0:09:28]} Nc6 {[%emt 0:04:08]} 8. Be3 {[%emt 0:06:14]} cxd4 {[%emt 0:02:14]} 9. cxd4 {[%emt 0:00:14]} e6 {[%emt 0:01:26]} 10. h5 {[%emt 0:06:45]} Qb6 {[%emt 0:02:50]} 11. Qd2 {[%emt 0:04:26]} Rc8 {[%emt 0:01:45]} 12. Nc3 {[%emt 0:02:53]} Na5 {[%emt 0:02:33]} 13. f4 {[%emt 0:11:15]} Bb4 {[%emt 0:08:43]} 14. Rc1 {[%emt 0:04:00]} Ne7 {[%emt 0:08:58]} 15. h6 {[%emt 0:03:13]} g6 {[%emt 0:03:04]} 16. Nf3 {[%emt 0:13:14]} O-O {[%emt 0:06:37]} 17. O-O {[%emt 0:03:37]} Nc4 {[%emt 0:06:53]} 18. Bxc4 {[%emt 0:00:18]} dxc4 {[%emt 0:02:07]} 19. Qf2 {[%emt 0:16:13]} Bxc3 {[%emt 0:01:54]} 20. bxc3 {[%emt 0:00:01]} Nd5 {[%emt 0:01:00]} 21. Ng5 {[%emt 0:01:54]} f5 {[%emt 0:03:17]} 22. exf6 {[%emt 0:00:56]} Rxf6 {[%emt 0:01:04]} 23. Ne4 {[%emt 0:09:33]} Rf7 {[%emt 0:02:14]} 24. Ng5 {[%emt 0:00:00]} Rf6 {[%emt 0:00:39]} 25. Ne4 {[%emt 0:00:00]} Rf7 {[%emt 0:00:51]} 26. Ng5 {[%emt 0:00:00]} 1/2-1/2

[Event "Romanian Championship Open 2025"]
[Site "Craiova"]
[Date "2025.02.17"]
[Round "3.13"]
[White "Botea, David-Alexandru"]
[Black "Serban, Cristian-Stefan"]
[Result "1/2-1/2"]
[Annotator "ChessBase"]
[ECO "A14"]
[WhiteElo "2127"]
[BlackElo "2295"]
[PlyCount "64"]
[EventDate "2025.02.12"]
[EventType "swiss"]
[EventCountry "ROU"]
[SourceTitle "playchess.com"]
[Source "ChessBase"]
[SourceQuality "1"]
[TimeControl "40/5400+30:900+30"]

1. c4 {[%emt 0:00:09]} Nf6 {[%emt 0:00:26]} 2. Nf3 {[%emt 0:00:03]} e6 {[%emt 0:00:16]} 3. e3 {[%emt 0:00:15]} d5 {[%emt 0:00:17]} 4. b3 {[%emt 0:00:15]} b6 {[%emt 0:01:39]} 5. g3 {[%emt 0:00:56]} Bb7 {[%emt 0:00:51]} 6. Bg2 {[%emt 0:00:09]} dxc4 {[%emt 0:00:20]} 7. bxc4 {[%emt 0:00:11]} c5 {[%emt 0:00:07]} 8. O-O {[%emt 0:01:52]} Be7 {[%emt 0:00:29]} 9. Bb2 {[%emt 0:02:01]} O-O {[%emt 0:00:31]} 10. d3 {[%emt 0:00:39]} Nc6 {[%emt 0:00:54]} 11. Qe2 {[%emt 0:00:20]} Qc7 {[%emt 0:13:29]} 12. Nc3 {[%emt 0:00:09]} a6 {[%emt 0:00:05]} 13. Rfd1 {[%emt 0:01:22]} Rab8 {[%emt 0:00:08]} 14. Rab1 {[%emt 0:00:42]} Rfd8 {[%emt 0:10:10]} 15. Ba1 {[%emt 0:00:32]} h6 {[%emt 0:06:10]} 16. Ne1 {[%emt 0:09:53]} Na7 {[%emt 0:01:05]} 17. a4 {[%emt 0:01:25]} Bxg2 {[%emt 0:00:22]} 18. Nxg2 {[%emt 0:00:39]} Nc6 {[%emt 0:00:11]} 19. f4 {[%emt 0:03:47]} Rd7 {[%emt 0:05:33]} 20. g4 {[%emt 0:03:26]} Rbd8 {[%emt 0:04:21]} 21. g5 {[%emt 0:33:51]} hxg5 {[%emt 0:00:06]} 22. fxg5 {[%emt 0:00:03]} Nh7 {[%emt 0:00:06]} 23. g6 {[%emt 0:00:50]} fxg6 {[%emt 0:00:06]} 24. Nf4 {[%emt 0:00:31]} Nf8 {[%emt 0:00:07]} 25. Ne4 {[%emt 0:01:30]} Ne5 {[%emt 0:18:24]} 26. Qb2 {[%emt 0:18:34]} Bf6 {[%emt 0:00:45]} 27. Qxb6 {[%emt 0:01:57]} Qxb6 {[%emt 0:02:28]} 28. Rxb6 {[%emt 0:00:23]} Nxc4 {[%emt 0:00:10]} 29. Bxf6 {[%emt 0:00:23]} Nxb6 {[%emt 0:00:08]} 30. Bxd8 {[%emt 0:00:04]} Rxd8 {[%emt 0:00:04]} 31. Nxc5 {[%emt 0:00:14]} e5 {[%emt 0:00:11]} 32. Ne2 {[%emt 0:09:16]} Nfd7 {[%emt 0:01:10]} 1/2-1/2

[Event "Romanian Championship Open 2025"]
[Site "Craiova"]
[Date "2025.02.17"]
[Round "3.14"]
[White "Dobre, Claudiu-Cristian"]
[Black "Barbu, Simon-Alexandru"]
[Result "1-0"]
[Annotator "ChessBase"]
[ECO "B38"]
[WhiteElo "2279"]
[BlackElo "2023"]
[PlyCount "113"]
[EventDate "2025.02.12"]
[EventType "swiss"]
[EventCountry "ROU"]
[SourceTitle "playchess.com"]
[Source "ChessBase"]
[SourceQuality "1"]
[TimeControl "40/5400+30:900+30"]

1. c4 {[%emt 0:07:10]} Nf6 {[%emt 0:00:29]} 2. Nc3 {[%emt 0:00:10]} c5 {[%emt 0:01:31]} 3. Nf3 {[%emt 0:00:07]} Nc6 {[%emt 0:00:15]} 4. d4 {[%emt 0:00:26]} cxd4 {[%emt 0:00:37]} 5. Nxd4 {[%emt 0:00:06]} g6 {[%emt 0:00:12]} 6. e4 {[%emt 0:00:09]} d6 {[%emt 0:01:08]} 7. h3 {[%emt 0:00:07]} Bg7 {[%emt 0:03:51]} 8. Be3 {[%emt 0:01:43]} O-O {[%emt 0:00:54]} 9. Be2 {[%emt 0:00:05]} Bd7 {[%emt 0:02:17]} 10. O-O {[%emt 0:00:07]} Nxd4 {[%emt 0:01:06]} 11. Bxd4 {[%emt 0:00:05]} Bc6 {[%emt 0:00:08]} 12. Qc2 {[%emt 0:00:04]} a5 {[%emt 0:00:47]} 13. Rad1 {[%emt 0:00:06]} Nd7 {[%emt 0:01:02]} 14. Bxg7 {[%emt 0:00:05]} Kxg7 {[%emt 0:00:03]} 15. Bg4 {[%emt 0:00:05]} Ne5 {[%emt 0:37:52]} 16. c5 {[%emt 0:00:33]} Nxg4 {[%emt 0:00:09]} 17. hxg4 {[%emt 0:00:04]} Qc8 {[%emt 0:00:01]} 18. cxd6 {[%emt 0:01:36]} Qxg4 {[%emt 0:00:07]} 19. dxe7 {[%emt 0:14:04]} Rfe8 {[%emt 0:00:04]} 20. Nd5 {[%emt 0:00:53]} Bxd5 {[%emt 0:00:13]} 21. Qc3+ {[%emt 0:02:57]} Kg8 {[%emt 0:03:07]} 22. exd5 {[%emt 0:00:18]} Rxe7 {[%emt 0:00:05]} 23. d6 {[%emt 0:23:30]} Rd7 {[%emt 0:00:20]} 24. Rfe1 {[%emt 0:23:46]} Qg5 {[%emt 0:10:36]} 25. Re5 {[%emt 0:01:25]} Qd8 {[%emt 0:00:22]} 26. Qd4 {[%emt 0:01:55]} Qf8 {[%emt 0:06:12]} 27. Rb5 {[%emt 0:03:41]} Ra6 {[%emt 0:07:02]} 28. Rb6 {[%emt 0:00:13]} Rxb6 {[%emt 0:02:42]} 29. Qxb6 {[%emt 0:00:07]} Qd8 {[%emt 0:00:02]} 30. Qd4 {[%emt 0:01:06]} Qf8 {[%emt 0:08:47]} 31. Qf6 {[%emt 0:00:49]} Qd8 {[%emt 0:00:31]} 32. Qd4 {[%emt 0:00:15]} Qf8 {[%emt 0:00:24]} 33. a4 {[%emt 0:02:02]} h5 {[%emt 0:06:41]} 34. Qe5 {[%emt 0:02:31]} Kh7 {[%emt 0:02:08]} 35. b3 {[%emt 0:07:51]} Qd8 {[%emt 0:01:25]} 36. Qd4 {[%emt 0:02:04]} Qh8 {[%emt 0:01:07]} 37. Qd5 {[%emt 0:03:45]} Qd8 {[%emt 0:00:20]} 38. Rd3 {[%emt 0:01:13]} Qf6 {[%emt 0:02:57]} 39. g3 {[%emt 0:00:49]} Kg7 {[%emt 0:01:27]} 40. Kg2 {[%emt 0:00:00]} Kh7 {[%emt 0:00:00]} 41. Rf3 {[%emt 0:07:14]} Qe6 {[%emt 0:02:42]} 42. Qxe6 fxe6 {[%emt 0:00:01]} 43. Rd3 {[%emt 0:02:33]} Kg7 {[%emt 0:04:17]} 44. Kf3 {[%emt 0:00:07]} Kf6 {[%emt 0:00:02]} 45. Ke4 {[%emt 0:00:08]} e5 {[%emt 0:00:01]} 46. Kd5 {[%emt 0:00:04]} e4 {[%emt 0:00:04]} 47. Rd4 {[%emt 0:07:00]} Kf5 {[%emt 0:07:31]} 48. f3 {[%emt 0:00:06]} exf3 {[%emt 0:02:11]} 49. Rf4+ {[%emt 0:00:05]} Kg5 {[%emt 0:00:03]} 50. Ke6 {[%emt 0:00:20]} Rh7 {[%emt 0:03:36]} 51. d7 {[%emt 0:00:11]} Rh8 {[%emt 0:00:01]} 52. Ke7 {[%emt 0:01:13]} Rh7+ {[%emt 0:01:20]} 53. Kd6 {[%emt 0:00:47]} Rh8 {[%emt 0:00:05]} 54. Kc7 {[%emt 0:01:04]} h4 {[%emt 0:00:02]} 55. Rxh4 {[%emt 0:01:07]} f2 {[%emt 0:01:17]} 56. Rf4 {[%emt 0:00:17]} Rh7 {[%emt 0:00:27]} 57. Kc8 {[%emt 0:00:14]} 1-0

[Event "Romanian Championship Open 2025"]
[Site "Craiova"]
[Date "2025.02.17"]
[Round "3.15"]
[White "Berechet, Otiliu-Octavian"]
[Black "Manea, Alexandru"]
[Result "1/2-1/2"]
[Annotator "ChessBase"]
[ECO "A20"]
[WhiteElo "1946"]
[BlackElo "2272"]
[PlyCount "73"]
[EventDate "2025.02.12"]
[EventType "swiss"]
[EventCountry "ROU"]
[SourceTitle "playchess.com"]
[Source "ChessBase"]
[SourceQuality "1"]
[TimeControl "40/5400+30:900+30"]

1. g3 {[%emt 0:00:04]} e5 {[%emt 0:01:06]} 2. c4 {[%emt 0:00:06]} h5 {[%emt 0:00:35]} 3. h3 {[%emt 0:00:19]} Nc6 {[%emt 0:05:14]} 4. Bg2 {[%emt 0:00:05]} d6 {[%emt 0:00:17]} 5. d3 {[%emt 0:00:13]} g5 {[%emt 0:01:45]} 6. e3 {[%emt 0:01:41]} Bg7 {[%emt 0:02:33]} 7. Nc3 {[%emt 0:00:03]} Nge7 {[%emt 0:02:40]} 8. Nd5 {[%emt 0:01:46]} Ng6 {[%emt 0:04:49]} 9. Bd2 {[%emt 0:01:41]} Nce7 {[%emt 0:06:52]} 10. Ba5 {[%emt 0:04:27]} Nxd5 {[%emt 0:04:42]} 11. Bxd5 {[%emt 0:00:04]} Qd7 {[%emt 0:02:54]} 12. Ne2 {[%emt 0:09:34]} c6 {[%emt 0:01:46]} 13. Bg2 {[%emt 0:00:05]} f5 {[%emt 0:00:21]} 14. Qc2 {[%emt 0:02:57]} Qf7 {[%emt 0:02:28]} 15. O-O-O {[%emt 0:06:07]} Be6 {[%emt 0:04:49]} 16. Kb1 {[%emt 0:08:04]} Bf6 {[%emt 0:12:17]} 17. Rhg1 {[%emt 0:09:04]} Rc8 {[%emt 0:14:27]} 18. Rc1 {[%emt 0:10:14]} O-O {[%emt 0:13:06]} 19. Be1 {[%emt 0:07:54]} b5 {[%emt 0:00:15]} 20. h4 {[%emt 0:00:10]} g4 {[%emt 0:01:50]} 21. f3 {[%emt 0:08:06]} bxc4 {[%emt 0:03:04]} 22. dxc4 {[%emt 0:04:27]} d5 {[%emt 0:01:31]} 23. Bb4 {[%emt 0:05:51]} c5 {[%emt 0:02:08]} 24. cxd5 {[%emt 0:00:01]} Bxd5 {[%emt 0:00:23]} 25. fxg4 {[%emt 0:00:01]} Bxg2 {[%emt 0:05:08]} 26. Rxg2 {[%emt 0:00:41]} cxb4 {[%emt 0:00:01]} 27. Qxf5 {[%emt 0:01:45]} Rxc1+ {[%emt 0:01:20]} 28. Nxc1 {[%emt 0:00:01]} hxg4 {[%emt 0:01:03]} 29. h5 {[%emt 0:00:48]} Ne7 {[%emt 0:00:07]} 30. Qxg4+ {[%emt 0:00:04]} Kh8 {[%emt 0:00:25]} 31. Qxb4 {[%emt 0:00:15]} Nd5 {[%emt 0:02:08]} 32. Qc5 {[%emt 0:04:10]} Bg5 {[%emt 0:02:58]} 33. Re2 {[%emt 0:01:01]} Re8 {[%emt 0:01:15]} 34. e4 {[%emt 0:01:48]} Qf1 {[%emt 0:00:39]} 35. exd5 {[%emt 0:00:03]} Bxc1 {[%emt 0:00:02]} 36. Qxc1 {[%emt 0:00:14]} Qxe2 {[%emt 0:00:03]} 37. Qh6+ {[%emt 0:00:05]} 1/2-1/2

[Event "Romanian Championship Open 2025"]
[Site "Craiova"]
[Date "2025.02.17"]
[Round "3.16"]
[White "Corbu, George-Alexandru"]
[Black "Ghimpu, Samuel-Timotei"]
[Result "0-1"]
[Annotator "ChessBase"]
[ECO "E24"]
[WhiteElo "2080"]
[BlackElo "2456"]
[PlyCount "100"]
[EventDate "2025.02.12"]
[EventType "swiss"]
[EventCountry "ROU"]
[SourceTitle "playchess.com"]
[Source "ChessBase"]
[SourceQuality "1"]
[TimeControl "40/5400+30:900+30"]

1. d4 {[%emt 0:00:03]} Nf6 {[%emt 0:00:37]} 2. c4 {[%emt 0:00:09]} e6 {[%emt 0:00:18]} 3. Nc3 {[%emt 0:00:32]} Bb4 {[%emt 0:00:17]} 4. a3 {[%emt 0:01:01]} Bxc3+ {[%emt 0:00:36]} 5. bxc3 {[%emt 0:00:02]} b6 {[%emt 0:00:18]} 6. f3 {[%emt 0:00:41]} Nc6 {[%emt 0:00:19]} 7. e4 {[%emt 0:00:11]} Na5 {[%emt 0:00:06]} 8. Bd3 {[%emt 0:00:31]} Ba6 {[%emt 0:00:18]} 9. Qe2 {[%emt 0:00:22]} c5 {[%emt 0:00:18]} 10. Nh3 {[%emt 0:00:26]} d6 {[%emt 0:27:05]} 11. e5 {[%emt 0:02:51]} dxe5 {[%emt 0:17:55]} 12. dxe5 {[%emt 1:29:41]} Ng8 13. Bg5 {[%emt 0:00:00]} Qc7 {[%emt 0:02:29]} 14. O-O {[%emt 0:00:00]} Ne7 {[%emt 0:01:24]} 15. Nf2 {[%emt 0:00:00]} Ng6 {[%emt 0:15:36]} 16. Rfe1 {[%emt 0:00:00]} h6 {[%emt 0:01:01]} 17. Bd2 {[%emt 0:00:00]} O-O-O {[%emt 0:00:42]} 18. Rad1 {[%emt 0:00:00]} Rd7 {[%emt 0:05:52]} 19. f4 {[%emt 0:00:00]} Rhd8 {[%emt 0:01:09]} 20. Be3 {[%emt 0:00:00]} Kb8 {[%emt 0:02:32]} 21. Ne4 {[%emt 0:00:00]} Bxc4 {[%emt 0:00:59]} 22. Nxc5 {[%emt 0:00:00]} bxc5 {[%emt 0:12:56]} 23. Rb1+ {[%emt 0:00:00]} Bb3 {[%emt 0:00:03]} 24. Bc4 {[%emt 0:00:00]} Qb6 {[%emt 0:00:25]} 25. Rxb3 {[%emt 0:00:00]} Nxb3 {[%emt 0:00:05]} 26. Rb1 {[%emt 0:00:00]} Rb7 {[%emt 0:01:45]} 27. Rxb3 {[%emt 0:00:00]} Qc6 {[%emt 0:00:43]} 28. Rxb7+ {[%emt 0:00:00]} Qxb7 {[%emt 0:01:05]} 29. Qc2 {[%emt 0:00:00]} Qc6 {[%emt 0:05:21]} 30. Bd3 {[%emt 0:00:00]} Qd5 {[%emt 0:01:00]} 31. Be4 {[%emt 0:01:38]} Qd1+ {[%emt 0:00:18]} 32. Kf2 {[%emt 0:00:19]} Qxc2+ {[%emt 0:00:22]} 33. Bxc2 {[%emt 0:00:01]} Kc7 {[%emt 0:00:51]} 34. g4 {[%emt 0:02:45]} Kb6 {[%emt 0:00:20]} 35. c4 {[%emt 0:00:24]} Ne7 {[%emt 0:00:12]} 36. h4 {[%emt 0:01:46]} Nc6 {[%emt 0:00:05]} 37. h5 {[%emt 0:01:02]} Na5 {[%emt 0:00:58]} 38. Bc1 {[%emt 0:00:41]} Nxc4 {[%emt 0:00:16]} 39. Ke2 {[%emt 0:02:05]} Na5 {[%emt 0:00:39]} 40. g5 {[%emt 0:00:00]} Nc6 {[%emt 0:00:00]} 41. Be4 {[%emt 0:04:45]} Nd4+ {[%emt 0:00:21]} 42. Kf2 {[%emt 0:00:05]} c4 {[%emt 0:00:30]} 43. Be3 {[%emt 0:04:17]} Kb5 {[%emt 0:00:58]} 44. g6 {[%emt 0:00:14]} fxg6 {[%emt 0:00:30]} 45. hxg6 {[%emt 0:00:02]} c3 {[%emt 0:00:30]} 46. Bd3+ {[%emt 0:00:16]} Ka4 {[%emt 0:00:30]} 47. Bxd4 {[%emt 0:01:08]} Rxd4 {[%emt 0:00:06]} 48. Bc2+ {[%emt 0:00:03]} Kxa3 {[%emt 0:00:10]} 49. f5 {[%emt 0:00:04]} exf5 {[%emt 0:00:13]} 50. e6 {[%emt 0:00:06]} Rd6 {[%emt 0:00:12]} 0-1

[Event "Romanian Championship Open 2025"]
[Site "Craiova"]
[Date "2025.02.17"]
[Round "3.17"]
[White "Dascalescu, Adelin-Stefan"]
[Black "Coicev, Matei-Andrei"]
[Result "1/2-1/2"]
[Annotator "ChessBase"]
[ECO "D02"]
[WhiteElo "2045"]
[BlackElo "2286"]
[PlyCount "184"]
[EventDate "2025.02.12"]
[EventType "swiss"]
[EventCountry "ROU"]
[SourceTitle "playchess.com"]
[Source "ChessBase"]
[SourceQuality "1"]
[TimeControl "40/5400+30:900+30"]

1. d4 {[%emt 0:00:02]} Nf6 {[%emt 0:00:06]} 2. Nf3 {[%emt 0:00:08]} d5 {[%emt 0:00:10]} 3. c3 {[%emt 0:00:09]} e6 {[%emt 0:00:06]} 4. Bf4 {[%emt 0:00:09]} c5 {[%emt 0:00:06]} 5. e3 {[%emt 0:00:25]} Nc6 {[%emt 0:00:05]} 6. Nbd2 {[%emt 0:01:37]} Be7 {[%emt 0:00:10]} 7. Ne5 {[%emt 0:00:15]} Nd7 {[%emt 0:00:09]} 8. Bd3 {[%emt 0:01:14]} Ndxe5 {[%emt 0:00:06]} 9. dxe5 {[%emt 0:00:08]} g5 {[%emt 0:00:04]} 10. Bg3 {[%emt 0:00:24]} h5 {[%emt 0:00:01]} 11. h3 {[%emt 0:00:50]} Bd7 {[%emt 0:00:04]} 12. Be2 {[%emt 0:02:04]} h4 {[%emt 0:02:11]} 13. Bh2 {[%emt 0:00:07]} Qc7 {[%emt 0:00:14]} 14. Nf3 {[%emt 0:04:20]} O-O-O {[%emt 0:00:48]} 15. Qc2 {[%emt 0:00:53]} Qa5 {[%emt 0:02:56]} 16. a3 {[%emt 0:05:45]} Kb8 {[%emt 0:02:24]} 17. e4 {[%emt 0:09:17]} Ka8 {[%emt 0:02:36]} 18. Nd2 {[%emt 0:03:42]} Bc8 {[%emt 0:04:06]} 19. O-O {[%emt 0:07:54]} d4 {[%emt 0:02:45]} 20. Nc4 {[%emt 0:00:55]} Qc7 {[%emt 0:01:01]} 21. Nd6 {[%emt 0:00:18]} Bxd6 {[%emt 0:02:13]} 22. exd6 {[%emt 0:00:02]} Qd7 {[%emt 0:01:14]} 23. b4 {[%emt 0:07:34]} dxc3 {[%emt 0:01:25]} 24. Qxc3 {[%emt 0:00:41]} e5 {[%emt 0:03:26]} 25. bxc5 {[%emt 0:01:26]} f6 {[%emt 0:02:22]} 26. Rfd1 {[%emt 0:01:52]} Qh7 {[%emt 0:09:44]} 27. f3 {[%emt 0:04:17]} f5 {[%emt 0:03:03]} 28. exf5 {[%emt 0:04:04]} Bxf5 {[%emt 0:00:15]} 29. Bxe5 {[%emt 0:06:10]} Rhe8 {[%emt 0:01:30]} 30. Bf6 {[%emt 0:01:22]} Rxe2 {[%emt 0:01:23]} 31. Bxd8 {[%emt 0:00:07]} Qd7 {[%emt 0:04:29]} 32. Bc7 {[%emt 0:00:54]} Re8 {[%emt 0:03:05]} 33. Re1 {[%emt 0:00:18]} Rg8 {[%emt 0:00:06]} 34. Qc4 {[%emt 0:00:55]} Rf8 {[%emt 0:01:12]} 35. Re3 {[%emt 0:01:13]} a6 {[%emt 0:00:54]} 36. Rae1 {[%emt 0:00:44]} Rc8 {[%emt 0:00:51]} 37. Bb6 {[%emt 0:01:22]} Kb8 {[%emt 0:03:10]} 38. Qa4 {[%emt 0:01:40]} Rg8 {[%emt 0:00:35]} 39. R1e2 {[%emt 0:01:53]} Kc8 {[%emt 0:00:17]} 40. Bc7 {[%emt 0:00:00]} Qf7 {[%emt 0:00:00]} 41. Qd1 {[%emt 0:07:21]} Bd7 {[%emt 0:03:08]} 42. Qd3 {[%emt 0:02:12]} Qg7 {[%emt 0:03:37]} 43. Qd5 {[%emt 0:01:53]} Rf8 {[%emt 0:00:36]} 44. Bb6 {[%emt 0:02:19]} Qa1+ {[%emt 0:01:14]} 45. Re1 {[%emt 0:00:54]} Qf6 {[%emt 0:00:11]} 46. Re6 {[%emt 0:06:32]} Bxe6 {[%emt 0:03:23]} 47. Qxe6+ {[%emt 0:00:15]} Qxe6 {[%emt 0:00:02]} 48. Rxe6 {[%emt 0:00:01]} Rg8 {[%emt 0:01:06]} 49. Kf2 {[%emt 0:01:06]} Kd7 {[%emt 0:00:28]} 50. Rf6 {[%emt 0:01:10]} Rg7 {[%emt 0:00:03]} 51. f4 {[%emt 0:02:10]} gxf4 {[%emt 0:00:20]} 52. Rxf4 {[%emt 0:00:08]} Rh7 {[%emt 0:00:17]} 53. Rf8 {[%emt 0:00:33]} Ke6 {[%emt 0:07:08]} 54. Bd8 {[%emt 0:02:06]} Ne5 {[%emt 0:00:35]} 55. Be7 {[%emt 0:01:03]} Nd3+ {[%emt 0:00:20]} 56. Ke3 {[%emt 0:01:54]} Nxc5 {[%emt 0:00:04]} 57. Kd4 {[%emt 0:02:09]} Nd7 {[%emt 0:02:02]} 58. Rf4 {[%emt 0:01:10]} Rh5 {[%emt 0:07:31]} 59. Re4+ {[%emt 0:00:30]} Kf7 {[%emt 0:01:48]} 60. Bxh4 {[%emt 0:00:12]} Nb8 {[%emt 0:00:58]} 61. Be7 {[%emt 0:02:46]} Nc6+ {[%emt 0:00:25]} 62. Kc3 {[%emt 0:00:26]} Rc5+ {[%emt 0:01:43]} 63. Kb2 {[%emt 0:00:19]} Rb5+ {[%emt 0:00:50]} 64. Ka2 {[%emt 0:00:20]} Rd5 {[%emt 0:00:09]} 65. Re2 {[%emt 0:00:31]} Rd3 {[%emt 0:06:11]} 66. h4 {[%emt 0:01:11]} Na5 {[%emt 0:01:40]} 67. h5 {[%emt 0:03:00]} Nc4 {[%emt 0:00:40]} 68. d7 {[%emt 0:01:20]} Rxd7 {[%emt 0:00:08]} 69. Bb4 {[%emt 0:00:25]} a5 {[%emt 0:01:00]} 70. Rf2+ {[%emt 0:00:05]} Kg8 {[%emt 0:02:52]} 71. Bc3 {[%emt 0:00:32]} a4 {[%emt 0:02:05]} 72. Bb4 {[%emt 0:01:15]} Rd5 {[%emt 0:01:26]} 73. Rf8+ {[%emt 0:05:58]} Kg7 {[%emt 0:00:22]} 74. Rc8 {[%emt 0:00:11]} Ne3 {[%emt 0:01:56]} 75. Bc3+ {[%emt 0:01:10]} Kh6 {[%emt 0:00:48]} 76. Rh8+ {[%emt 0:00:14]} Kg5 {[%emt 0:00:02]} 77. h6 {[%emt 0:00:21]} Rd3 {[%emt 0:01:26]} 78. Bb4 {[%emt 0:03:38]} Nd5 {[%emt 0:00:53]} 79. Rb8 {[%emt 0:01:40]} Kxh6 {[%emt 0:03:25]} 80. Rxb7 {[%emt 0:00:08]} Kg6 {[%emt 0:00:21]} 81. Ra7 {[%emt 0:00:13]} Rg3 {[%emt 0:00:19]} 82. Rxa4 {[%emt 0:00:57]} Rxg2+ {[%emt 0:00:04]} 83. Kb3 {[%emt 0:00:18]} Rg3+ {[%emt 0:00:07]} 84. Kc2 {[%emt 0:00:07]} Kf5 {[%emt 0:00:12]} 85. Bd2 {[%emt 0:00:50]} Rf3 {[%emt 0:00:28]} 86. Ra5 {[%emt 0:00:14]} Ke6 {[%emt 0:00:27]} 87. Ra6+ {[%emt 0:00:13]} Kd7 {[%emt 0:00:09]} 88. a4 {[%emt 0:00:34]} Kc7 {[%emt 0:00:11]} 89. Rg6 {[%emt 0:00:43]} Ne3+ {[%emt 0:00:44]} 90. Kd3 {[%emt 0:00:48]} Nf1+ {[%emt 0:00:04]} 91. Ke2 {[%emt 0:00:11]} Nxd2 {[%emt 0:00:04]} 92. Kxd2 {[%emt 0:00:05]} Ra3 {[%emt 0:00:04]} 1/2-1/2